fUSD/lending_fUSD_20250204
["ID","MTS","AMOUNT","RATE_DAILY","PERIOD"]
[351621744,1738667465509,-500.0,9.719e-05,2]
[351621745,1738667465522,-500.0,9.719e-05,2]
[351621746,1738667465532,-500.0,9.719e-05,2]
[351621747,1738667465542,-500.0,9.719e-05,2]
[351621748,1738667465552,-500.0,9.719e-05,2]
[351621749,1738667465563,-500.0,9.719e-05,2]
[351621750,1738667465573,-546.1,9.719e-05,2]
[351621751,1738667465584,-500.0,9.719e-05,2]
[351621752,1738667465595,-500.0,9.719e-05,2]
[351621753,1738667465605,-500.0,9.719e-05,2]
[351621754,1738667465615,-527.43,9.719e-05,2]
[351621755,1738667465625,-500.0,9.719e-05,2]
[351621756,1738667465635,-646.54,9.719e-05,2]
[351621757,1738667465646,-500.0,9.719e-05,2]
[351621758,1738667465656,-500.0,9.719e-05,2]
[351621759,1738667465664,-546.74,9.719e-05,2]
[351621760,1738667465675,-500.0,9.719e-05,2]
[351621761,1738667465686,-1016.87,9.719e-05,2]
[351621762,1738667465696,-560.89,9.719e-05,2]
[351621763,1738667465705,-887.96,9.719e-05,2]
[351621764,1738667465715,-806.65,9.719e-05,2]
[351621765,1738667465727,-916.85,9.719e-05,2]
[351621766,1738667465737,-656.328528,9.719e-05,2]
[351621767,1738667465747,-674.34,9.719e-05,2]
[351621768,1738667465757,-500.0,9.719e-05,2]
[351621769,1738667465767,-830.84,9.719e-05,2]
[351621770,1738667465778,-500.0,9.719e-05,2]
[351621771,1738667465788,-735.59,9.719e-05,2]
[351621772,1738667465799,-1020.31,9.719e-05,2]
[351621773,1738667465808,-678.3,9.719e-05,2]
[351621774,1738667465818,-500.0,9.719e-05,2]
[351621775,1738667465829,-670.662005,9.719e-05,2]
[351621776,1738667465839,-761.16,9.719e-05,2]
[351621777,1738667465849,-1191.92,9.719e-05,2]
[351621778,1738667465860,-842.81,9.719e-05,2]
[351621779,1738667465871,-501.19,9.719e-05,2]
[351621780,1738667465881,-1436.96,9.719e-05,2]
[351621781,1738667465891,-1098.86,9.719e-05,2]
[351621782,1738667465901,-1587.17,9.719e-05,2]
[351621783,1738667465912,-555.35,9.719e-05,2]
[351621784,1738667465922,-3586.6,9.719e-05,2]
[351621785,1738667465932,-826.45,9.719e-05,2]
[351621786,1738667465942,-874.52,9.719e-05,2]
[351621787,1738667465953,-735.1,9.719e-05,2]
[351621788,1738667465962,-500.0,9.719e-05,2]
[351621789,1738667465976,-1133.01,9.719e-05,2]
[351621790,1738667465986,-1079.23,9.719e-05,2]
[351621791,1738667465996,-1605.3,9.719e-05,2]
[351621792,1738667466006,-566.45,9.719e-05,2]
[351621793,1738667466017,-1195.29,9.719e-05,2]
[351621794,1738667466027,-528.44,9.719e-05,2]
[351621795,1738667466037,-1670.85,9.719e-05,2]
[351621796,1738667466047,-1128.85,9.719e-05,2]
[351621797,1738667466057,-2377.98,9.719e-05,2]
[351621798,1738667466067,-500.0,9.719e-05,2]
[351621799,1738667466078,-742.14,9.719e-05,2]
[351621800,1738667466087,-704.68,9.719e-05,2]
[351621801,1738667466097,-1562.25,9.719e-05,2]
[351621802,1738667466107,-996.25,9.719e-05,2]
[351621803,1738667466117,-752.83,9.719e-05,2]
[351621804,1738667466127,-747.44,9.719e-05,2]
[351621805,1738667466137,-1009.27,9.719e-05,2]
[351621806,1738667466147,-950.45,9.719e-05,2]
[351621807,1738667466158,-1760.82,9.719e-05,2]
[351621808,1738667466168,-579.06,9.719e-05,2]
[351621809,1738667466178,-1336.98,9.719e-05,2]
[351621810,1738667466189,-1190.29,9.719e-05,2]
[351621811,1738667466198,-1037.35,9.719e-05,2]
[351621812,1738667466207,-975.36,9.719e-05,2]
[351621813,1738667466217,-1052.38,9.719e-05,2]
[351621814,1738667466231,-500.0,9.719e-05,2]
[351621815,1738667466242,-1172.6,9.719e-05,2]
[351621816,1738667466252,-500.0,9.719e-05,2]
[351621817,1738667466264,-553.74,9.719e-05,2]
[351621818,1738667466274,-893.18,9.719e-05,2]
[351621819,1738667466285,-619.3,9.719e-05,2]
[351621820,1738667466296,-900.81,9.719e-05,2]
[351621821,1738667466307,-793.87,9.719e-05,2]
[351621822,1738667466320,-567.81,9.719e-05,2]
[351621823,1738667466331,-500.0,9.719e-05,2]
[351621824,1738667466342,-608.06,9.719e-05,2]
[351621825,1738667466352,-542.59,9.719e-05,2]
[351621826,1738667466362,-1088.9,9.719e-05,2]
[351621827,1738667466372,-500.0,9.719e-05,2]
[351621828,1738667466384,-500.0,9.72e-05,2]
[351621829,1738667466394,-500.0,9.72e-05,2]
[351621830,1738667466404,-500.0,9.72e-05,2]
[351621831,1738667466415,-649.36,9.72e-05,2]
[351621832,1738667466425,-500.0,9.72e-05,2]
[351621833,1738667466436,-500.0,9.72e-05,2]
[351621834,1738667466447,-500.0,9.72e-05,2]
[351621835,1738667466457,-500.0,9.72e-05,2]
[351621836,1738667466466,-500.0,9.72e-05,2]
[351621837,1738667466483,-500.0,9.72e-05,2]
[351621838,1738667466493,-664.96,9.72e-05,2]
[351621839,1738667466503,-500.0,9.72e-05,2]
[351621840,1738667466513,-500.0,9.72e-05,2]
[351621841,1738667466523,-500.0,9.72e-05,2]
[351621842,1738667466534,-500.0,9.72e-05,2]
[351621843,1738667466545,-500.0,9.72e-05,2]
[351621844,1738667466555,-500.0,9.72e-05,2]
[351621845,1738667466565,-500.0,9.72e-05,2]
[351621846,1738667466575,-595.16,9.72e-05,2]
[351621847,1738667466585,-568.57,9.72e-05,2]
[351621848,1738667466595,-500.0,9.72e-05,2]
[351621849,1738667466605,-500.0,9.72e-05,2]
[351621850,1738667466616,-789.04,9.72e-05,2]
[351621851,1738667466626,-500.0,9.72e-05,2]
[351621852,1738667466636,-500.0,9.72e-05,2]
[351621853,1738667466645,-500.0,9.72e-05,2]
[351621854,1738667466655,-500.0,9.72e-05,2]
[351621855,1738667466665,-500.0,9.72e-05,2]
[351621856,1738667466675,-500.0,9.72e-05,2]
[351621857,1738667466685,-500.0,9.72e-05,2]
[351621858,1738667466696,-544.55,9.72e-05,2]
[351621859,1738667466706,-502.21,9.72e-05,2]
[351621860,1738667466717,-706.43,9.72e-05,2]
[351621861,1738667466732,-500.0,9.72e-05,2]
[351621862,1738667466742,-500.0,9.72e-05,2]
[351621863,1738667466753,-500.0,9.72e-05,2]
[351621864,1738667466763,-500.0,9.72e-05,2]
[351621865,1738667466775,-500.0,9.72e-05,2]
[351621866,1738667466786,-574.13,9.72e-05,2]
[351621867,1738667466797,-500.0,9.72e-05,2]
[351621868,1738667466807,-562.82,9.72e-05,2]
[351621869,1738667466817,-581.83,9.72e-05,2]
[351621870,1738667466827,-520.24,9.72e-05,2]
[351621871,1738667466837,-500.0,9.72e-05,2]
[351621872,1738667466847,-500.0,9.72e-05,2]
[351621873,1738667466858,-587.74,9.72e-05,2]
[351621874,1738667466868,-500.0,9.72e-05,2]
[351621875,1738667466879,-500.0,9.72e-05,2]
[351621876,1738667466888,-604.38,9.72e-05,2]
[351621877,1738667466958,-500.0,9.72e-05,2]
[351621878,1738667466969,-500.0,9.72e-05,2]
[351621879,1738667466979,-500.0,9.72e-05,2]
[351621880,1738667466989,-500.0,9.72e-05,2]
[351621881,1738667466998,-500.0,9.72e-05,2]
[351621882,1738667467008,-500.0,9.72e-05,2]
[351621883,1738667467018,-500.0,9.72e-05,2]
[351621884,1738667467027,-500.0,9.72e-05,2]
[351621885,1738667467037,-500.0,9.72e-05,2]
[351621886,1738667467047,-500.0,9.72e-05,2]
[351621887,1738667467057,-517.16,9.72e-05,2]
[351621888,1738667467067,-500.0,9.72e-05,2]
[351621889,1738667467077,-500.0,9.72e-05,2]
[351621890,1738667467086,-229.99353808,9.72e-05,2]
[351621891,1738667467096,-500.0,9.72e-05,2]
[351621892,1738667467106,-500.0,9.72e-05,2]
[351621893,1738667467115,-546.35,9.72e-05,2]
[351621894,1738667467125,-500.0,9.72e-05,2]
[351621895,1738667467136,-595.56,9.72e-05,2]
[351621896,1738667467146,-500.0,9.72e-05,2]
[351621897,1738667467156,-837.13,9.72e-05,2]
[351621898,1738667467166,-500.0,9.72e-05,2]
[351621899,1738667467176,-500.0,9.72e-05,2]
[351621900,1738667467185,-500.0,9.72e-05,2]
[351621901,1738667467195,-500.0,9.72e-05,2]
[351621902,1738667467205,-414.51691371,9.72e-05,2]
[351621903,1738667467215,-500.0,9.72e-05,2]
[351621904,1738667467228,-425.02734217,9.72e-05,2]
[351621905,1738667467238,-500.0,9.72e-05,2]
[351621906,1738667467248,-500.0,9.72e-05,2]
[351621907,1738667467258,-500.0,9.72e-05,2]
[351621908,1738667467268,-744.25,9.72e-05,2]
[351621909,1738667467277,-500.0,9.72e-05,2]
[351621910,1738667467287,-500.0,9.72e-05,2]
[351621911,1738667467296,-500.0,9.72e-05,2]
[351621912,1738667467305,-500.0,9.72e-05,2]
[351621913,1738667467314,-500.0,9.72e-05,2]
[351621914,1738667467324,-500.0,9.72e-05,2]
[351621915,1738667467333,-500.0,9.72e-05,2]
[351621916,1738667467343,-500.0,9.72e-05,2]
[351621917,1738667467353,-500.0,9.72e-05,2]
[351621918,1738667467362,-500.0,9.72e-05,2]
[351621919,1738667467371,-500.0,9.72e-05,2]
[351621920,1738667467380,-518.9,9.72e-05,2]
[351621921,1738667467389,-607.74,9.72e-05,2]
[351621922,1738667467399,-610.12,9.72e-05,2]
[351621923,1738667467409,-500.0,9.72e-05,2]
[351621924,1738667467418,-500.0,9.72e-05,2]
[351621925,1738667467428,-559.08,9.72e-05,2]
[351621926,1738667467437,-500.0,9.72e-05,2]
[351621927,1738667467446,-500.0,9.72e-05,2]
[351621928,1738667467456,-500.0,9.72e-05,2]
[351621929,1738667467465,-500.0,9.72e-05,2]
[351621930,1738667467477,-500.0,9.72e-05,2]
[351621931,1738667467486,-500.0,9.72e-05,2]
[351621932,1738667467495,-500.0,9.72e-05,2]
[351621933,1738667467505,-500.0,9.72e-05,2]
[351621934,1738667467514,-628.3,9.72e-05,2]
[351621935,1738667467527,-500.0,9.72e-05,2]
[351621936,1738667467536,-638.27764285,9.72e-05,2]
[351621937,1738667467546,-500.0,9.72e-05,2]
[351621938,1738667467556,-500.0,9.72e-05,2]
[351621939,1738667467567,-500.0,9.72e-05,2]
[351621940,1738667467576,-500.0,9.72e-05,2]
[351621941,1738667467586,-500.0,9.72e-05,2]
[351621942,1738667467595,-500.0,9.72e-05,2]
[351621943,1738667467609,-676.5,9.72e-05,2]
[351621944,1738667467619,-500.0,9.72e-05,2]
[351621945,1738667467628,-650.5,9.72e-05,2]
[351621946,1738667467637,-500.0,9.72e-05,2]
[351621947,1738667467648,-500.0,9.72e-05,2]
[351621948,1738667467658,-500.0,9.72e-05,2]
[351621949,1738667467667,-500.0,9.72e-05,2]
[351621950,1738667467676,-1034.12,9.72e-05,2]
[351621951,1738667467685,-500.0,9.72e-05,2]
[351621952,1738667467696,-500.0,9.72e-05,2]
[351621953,1738667467705,-500.0,9.72e-05,2]
[351621954,1738667467715,-500.0,9.72e-05,2]
[351621955,1738667467727,-500.0,9.72e-05,2]
[351621956,1738667467736,-500.0,9.72e-05,2]
[351621957,1738667467745,-629.6,9.72e-05,2]
[351621958,1738667467755,-500.0,9.72e-05,2]
[351621959,1738667467765,-591.63,9.72e-05,2]
[351621960,1738667467775,-500.0,9.72e-05,2]
[351621961,1738667467784,-500.0,9.72e-05,2]
[351621962,1738667467794,-514.54,9.72e-05,2]
[351621963,1738667467803,-627.41,9.72e-05,2]
[351621964,1738667467813,-936.6,9.72e-05,2]
[351621965,1738667467822,-500.0,9.72e-05,2]
[351621966,1738667467832,-500.0,9.72e-05,2]
[351621967,1738667467842,-901.83,9.72e-05,2]
[351621968,1738667467851,-657.01,9.72e-05,2]
[351621969,1738667467861,-500.0,9.72e-05,2]
[351621970,1738667467870,-1347.54,9.72e-05,2]
[351621971,1738667467880,-500.0,9.72e-05,2]
[351621972,1738667467889,-500.0,9.72e-05,2]
[351621973,1738667467899,-500.0,9.72e-05,2]
[351621974,1738667467908,-821.28,9.72e-05,2]
[351621975,1738667467917,-766.46,9.72e-05,2]
[351621976,1738667467927,-548.84,9.72e-05,2]
[351621977,1738667467936,-277.81141015,9.72e-05,2]
[351621978,1738667467946,-1067.5,9.72e-05,2]
[351621979,1738667467955,-567.98,9.72e-05,2]
[351621980,1738667467964,-1206.36,9.72e-05,2]
[351621981,1738667467976,-789.24,9.72e-05,2]
[351621982,1738667467985,-719.05,9.72e-05,2]
[351621983,1738667467994,-500.0,9.72e-05,2]
[351621984,1738667468003,-1125.83,9.72e-05,2]
[351621985,1738667468012,-500.0,9.72e-05,2]
[351621986,1738667468022,-710.7,9.72e-05,2]
[351621987,1738667468032,-1002.01,9.72e-05,2]
[351621988,1738667468042,-500.0,9.72e-05,2]
[351621989,1738667468051,-500.0,9.72e-05,2]
[351621990,1738667468060,-1399.32,9.72e-05,2]
[351621991,1738667468070,-500.0,9.72e-05,2]
[351621992,1738667468079,-500.0,9.72e-05,2]
[351621993,1738667468088,-889.43,9.72e-05,2]
[351621994,1738667468097,-1705.36,9.72e-05,2]
[351621995,1738667468106,-500.0,9.72e-05,2]
[351621996,1738667468115,-500.0,9.72e-05,2]
[351621997,1738667468125,-500.0,9.72e-05,2]
[351621998,1738667468134,-973.3,9.72e-05,2]
[351621999,1738667468143,-627.32,9.72e-05,2]
[351622000,1738667468153,-500.0,9.72e-05,2]
[351622001,1738667468163,-500.0,9.72e-05,2]
[351622002,1738667468172,-500.0,9.72e-05,2]
[351622003,1738667468181,-1050.31,9.72e-05,2]
[351622004,1738667468190,-500.0,9.72e-05,2]
[351622005,1738667468199,-853.18,9.72e-05,2]
[351622006,1738667468208,-508.75,9.72e-05,2]
[351622007,1738667468218,-794.56,9.72e-05,2]
[351622008,1738667468233,-501.04,9.72e-05,2]
[351622009,1738667468242,-500.0,9.72e-05,2]
[351622010,1738667468252,-500.0,9.72e-05,2]
[351622011,1738667468261,-1140.49,9.72e-05,2]
[351622012,1738667468270,-989.2,9.72e-05,2]
[351622013,1738667468279,-500.0,9.72e-05,2]
[351622014,1738667468289,-500.0,9.72e-05,2]
[351622015,1738667468298,-500.0,9.72e-05,2]
[351622016,1738667468307,-500.0,9.72e-05,2]
[351622017,1738667468316,-1075.23,9.72e-05,2]
[351622018,1738667468326,-628.14816305,9.72e-05,2]
[351622019,1738667468335,-500.0,9.72e-05,2]
[351622020,1738667468345,-774.53,9.72e-05,2]
[351622021,1738667468354,-1624.68,9.72e-05,2]
[351622022,1738667468363,-648.91,9.72e-05,2]
[351622023,1738667468373,-1182.58,9.72e-05,2]
[351622024,1738667468383,-500.0,9.72e-05,2]
[351622025,1738667468393,-1295.83,9.72e-05,2]
[351622026,1738667468403,-553.29,9.72e-05,2]
[351622027,1738667468414,-500.0,9.72e-05,2]
[351622028,1738667468426,-658.47,9.72e-05,2]
[351622029,1738667468436,-500.0,9.72e-05,2]
[351622030,1738667468446,-1241.19,9.72e-05,2]
[351622031,1738667468456,-1520.74,9.72e-05,2]
[351622032,1738667468466,-960.33,9.72e-05,2]
[351622033,1738667468479,-500.0,9.72e-05,2]
[351622034,1738667468488,-707.2,9.72e-05,2]
[351622035,1738667468497,-1221.09,9.72e-05,2]
[351622036,1738667468506,-500.0,9.72e-05,2]
[351622037,1738667468515,-679.07,9.72e-05,2]
[351622038,1738667468524,-1350.28,9.72e-05,2]
[351622039,1738667468534,-500.0,9.72e-05,2]
[351622040,1738667468545,-500.0,9.72e-05,2]
[351622041,1738667468555,-562.23,9.72e-05,2]
[351622042,1738667468566,-500.0,9.72e-05,2]
[351622043,1738667468576,-1580.8,9.72e-05,2]
[351622044,1738667468586,-508.98,9.72e-05,2]
[351622045,1738667468595,-1058.05,9.72e-05,2]
[351622046,1738667468604,-500.0,9.72e-05,2]
[351622047,1738667468616,-1211.28,9.72e-05,2]
[351622048,1738667468626,-738.97,9.72e-05,2]
[351622049,1738667468635,-500.0,9.72e-05,2]
[351622050,1738667468643,-508.24,9.72e-05,2]
[351622051,1738667468653,-500.0,9.72e-05,2]
[351622052,1738667468663,-1081.83,9.72e-05,2]
[351622053,1738667468673,-500.0,9.72e-05,2]
[351622054,1738667468683,-500.0,9.72e-05,2]
[351622055,1738667468692,-1843.73,9.72e-05,2]
[351622056,1738667468702,-500.0,9.72e-05,2]
[351622057,1738667468711,-500.0,9.72e-05,2]
[351622058,1738667468726,-1000.0,9.736e-05,4]
[351622059,1738667468736,-587.0,9.741e-05,2]
[351622060,1738667468746,-796.5585226,9.785e-05,2]
[351622061,1738667468757,-300.0,9.8e-05,3]
[351622062,1738667468766,-158.400447,9.834e-05,2]
[351622063,1738667468776,-593.13,9.856e-05,2]
[351622064,1738667468786,-500.0,9.856e-05,2]
[351622065,1738667468795,-500.0,9.856e-05,2]
[351622066,1738667468805,-500.0,9.856e-05,2]
[351622067,1738667468814,-500.0,9.856e-05,2]
[351622068,1738667468824,-500.0,9.856e-05,2]
[351622069,1738667468833,-500.0,9.856e-05,2]
[351622070,1738667468843,-350.01845143,9.856e-05,2]
[351622071,1738667468852,-546.1,9.856e-05,2]
[351622072,1738667468861,-500.0,9.856e-05,2]
[351622073,1738667468871,-500.0,9.856e-05,2]
[351622074,1738667468883,-500.0,9.856e-05,2]
[351622075,1738667468892,-527.43,9.856e-05,2]
[351622076,1738667468901,-376.12423917,9.856e-05,2]
[351622077,1738667468910,-646.54,9.856e-05,2]
[351622078,1738667468919,-500.0,9.856e-05,2]
[351622079,1738667468929,-500.0,9.856e-05,2]
[351622080,1738667468938,-546.74,9.856e-05,2]
[351622081,1738667468947,-500.0,9.856e-05,2]
[351622082,1738667468957,-1016.87,9.856e-05,2]
[351622083,1738667468966,-560.89,9.856e-05,2]
[351622084,1738667468978,-887.96,9.856e-05,2]
[351622085,1738667468988,-806.65,9.856e-05,2]
[351622086,1738667468997,-916.85,9.856e-05,2]
[351622087,1738667469007,-656.328528,9.856e-05,2]
[351622088,1738667469016,-674.34,9.856e-05,2]
[351622089,1738667469025,-500.0,9.856e-05,2]
[351622090,1738667469034,-830.84,9.856e-05,2]
[351622091,1738667469043,-500.0,9.856e-05,2]
[351622092,1738667469052,-735.59,9.856e-05,2]
[351622093,1738667469062,-1020.31,9.856e-05,2]
[351622094,1738667469071,-678.3,9.856e-05,2]
[351622095,1738667469080,-500.0,9.856e-05,2]
[351622096,1738667469091,-670.662005,9.856e-05,2]
[351622097,1738667469102,-761.16,9.856e-05,2]
[351622098,1738667469114,-1191.92,9.856e-05,2]
[351622099,1738667469123,-842.81,9.856e-05,2]
[351622100,1738667469133,-501.19,9.856e-05,2]
[351622101,1738667469142,-1436.96,9.856e-05,2]
[351622102,1738667469152,-1098.86,9.856e-05,2]
[351622103,1738667469161,-1587.17,9.856e-05,2]
[351622104,1738667469170,-555.35,9.856e-05,2]
[351622105,1738667469179,-3586.6,9.856e-05,2]
[351622106,1738667469188,-826.45,9.856e-05,2]
[351622107,1738667469197,-874.52,9.856e-05,2]
[351622108,1738667469206,-735.1,9.856e-05,2]
[351622109,1738667469216,-500.0,9.856e-05,2]
[351622110,1738667469228,-1133.01,9.856e-05,2]
[351622111,1738667469237,-1079.23,9.856e-05,2]
[351622112,1738667469247,-1605.3,9.856e-05,2]
[351622113,1738667469256,-566.45,9.856e-05,2]
[351622114,1738667469266,-1195.29,9.856e-05,2]
[351622115,1738667469275,-528.44,9.856e-05,2]
[351622116,1738667469284,-1670.85,9.856e-05,2]
[351622117,1738667469293,-1128.85,9.856e-05,2]
[351622118,1738667469302,-2377.98,9.856e-05,2]
[351622119,1738667469312,-500.0,9.856e-05,2]
[351622120,1738667469321,-742.14,9.856e-05,2]
[351622121,1738667469330,-704.68,9.856e-05,2]
[351622122,1738667469340,-1562.25,9.856e-05,2]
[351622123,1738667469349,-996.25,9.856e-05,2]
[351622124,1738667469358,-752.83,9.856e-05,2]
[351622125,1738667469367,-747.44,9.856e-05,2]
[351622126,1738667469377,-1009.27,9.856e-05,2]
[351622127,1738667469387,-950.45,9.856e-05,2]
[351622128,1738667469396,-1760.82,9.856e-05,2]
[351622129,1738667469405,-579.06,9.856e-05,2]
[351622130,1738667469414,-1336.98,9.856e-05,2]
[351622131,1738667469424,-1190.29,9.856e-05,2]
[351622132,1738667469433,-1037.35,9.856e-05,2]
[351622133,1738667469442,-975.36,9.856e-05,2]
[351622134,1738667469452,-1052.38,9.856e-05,2]
[351622135,1738667469461,-500.0,9.856e-05,2]
[351622136,1738667469470,-1172.6,9.856e-05,2]
[351622137,1738667469482,-500.0,9.856e-05,2]
[351622138,1738667469492,-553.74,9.856e-05,2]
[351622139,1738667469501,-893.18,9.856e-05,2]
[351622140,1738667469510,-619.3,9.856e-05,2]
[351622141,1738667469524,-900.81,9.856e-05,2]
[351622142,1738667469534,-793.87,9.856e-05,2]
[351622143,1738667469543,-567.81,9.856e-05,2]
[351622144,1738667469553,-500.0,9.856e-05,2]
[351622145,1738667469563,-608.06,9.856e-05,2]
[351622146,1738667469573,-542.59,9.856e-05,2]
[351622147,1738667469582,-1088.9,9.856e-05,2]
[351622148,1738667469591,-500.0,9.856e-05,2]
[351622149,1738667469602,-500.0,9.857e-05,2]
[351622150,1738667469612,-500.0,9.857e-05,2]
[351622151,1738667469621,-500.0,9.857e-05,2]
[351622152,1738667469631,-649.36,9.857e-05,2]
[351622153,1738667469641,-500.0,9.857e-05,2]
[351622154,1738667469652,-500.0,9.857e-05,2]
[351622155,1738667469663,-334.90246327,9.857e-05,2]
[351622156,1738667469673,-500.0,9.857e-05,2]
[351622157,1738667469683,-500.0,9.857e-05,2]
[351622158,1738667469695,-500.0,9.857e-05,2]
[351622159,1738667469705,-664.96,9.857e-05,2]
[351622160,1738667469715,-360.74218143,9.857e-05,2]
[351622161,1738667469729,-500.0,9.857e-05,2]
[351622162,1738667469739,-500.0,9.857e-05,2]
[351622163,1738667469750,-500.0,9.857e-05,2]
[351622164,1738667469761,-341.56339284,9.857e-05,2]
[351622165,1738667469771,-500.0,9.857e-05,2]
[351622166,1738667469781,-351.51315986,9.857e-05,2]
[351622167,1738667469791,-595.16,9.857e-05,2]
[351622168,1738667469802,-568.57,9.857e-05,2]
[351622169,1738667469812,-500.0,9.857e-05,2]
[351622170,1738667469822,-500.0,9.857e-05,2]
[351622171,1738667469833,-789.04,9.857e-05,2]
[351622172,1738667469843,-500.0,9.857e-05,2]
[351622173,1738667469853,-500.0,9.857e-05,2]
[351622174,1738667469864,-500.0,9.857e-05,2]
[351622175,1738667469873,-500.0,9.857e-05,2]
[351622176,1738667469883,-500.0,9.857e-05,2]
[351622177,1738667469893,-269.19022209,9.857e-05,2]
[351622178,1738667469903,-500.0,9.857e-05,2]
[351622179,1738667469913,-544.55,9.857e-05,2]
[351622180,1738667469923,-502.21,9.857e-05,2]
[351622181,1738667469932,-706.43,9.857e-05,2]
[351622182,1738667469942,-500.0,9.857e-05,2]
[351622183,1738667469952,-500.0,9.857e-05,2]
[351622184,1738667469962,-500.0,9.857e-05,2]
[351622185,1738667469971,-500.0,9.857e-05,2]
[351622186,1738667469983,-500.0,9.857e-05,2]
[351622187,1738667469992,-574.13,9.857e-05,2]
[351622188,1738667470002,-500.0,9.857e-05,2]
[351622189,1738667470011,-562.82,9.857e-05,2]
[351622190,1738667470020,-581.83,9.857e-05,2]
[351622191,1738667470029,-520.24,9.857e-05,2]
[351622192,1738667470038,-500.0,9.857e-05,2]
[351622193,1738667470047,-500.0,9.857e-05,2]
[351622194,1738667470056,-587.74,9.857e-05,2]
[351622195,1738667470066,-500.0,9.857e-05,2]
[351622196,1738667470076,-500.0,9.857e-05,2]
[351622197,1738667470085,-604.38,9.857e-05,2]
[351622198,1738667470095,-500.0,9.857e-05,2]
[351622199,1738667470104,-500.0,9.857e-05,2]
[351622200,1738667470114,-500.0,9.857e-05,2]
[351622201,1738667470124,-500.0,9.857e-05,2]
[351622202,1738667470133,-500.0,9.857e-05,2]
[351622203,1738667470143,-500.0,9.857e-05,2]
[351622204,1738667470154,-500.0,9.857e-05,2]
[351622205,1738667470163,-500.0,9.857e-05,2]
[351622206,1738667470173,-478.90106815,9.857e-05,2]
[351622207,1738667470183,-517.16,9.857e-05,2]
[351622208,1738667470193,-500.0,9.857e-05,2]
[351622209,1738667470203,-500.0,9.857e-05,2]
[351622210,1738667470213,-500.0,9.857e-05,2]
[351622211,1738667470226,-500.0,9.857e-05,2]
[351622212,1738667470236,-500.0,9.857e-05,2]
[351622213,1738667470246,-546.35,9.857e-05,2]
[351622214,1738667470255,-521.4762325,9.857e-05,2]
[351622215,1738667470266,-595.56,9.857e-05,2]
[351622216,1738667470275,-500.0,9.857e-05,2]
[351622217,1738667470284,-837.13,9.857e-05,2]
[351622218,1738667470294,-500.0,9.857e-05,2]
[351622219,1738667470303,-500.0,9.857e-05,2]
[351622220,1738667470313,-500.0,9.857e-05,2]
[351622221,1738667470323,-500.0,9.857e-05,2]
[351622222,1738667470332,-496.54653994,9.857e-05,2]
[351622223,1738667470341,-500.0,9.857e-05,2]
[351622224,1738667470351,-500.0,9.857e-05,2]
[351622225,1738667470360,-500.0,9.857e-05,2]
[351622226,1738667470370,-744.25,9.857e-05,2]
[351622227,1738667470379,-500.0,9.857e-05,2]
[351622228,1738667470389,-500.0,9.857e-05,2]
[351622229,1738667470399,-500.0,9.857e-05,2]
[351622230,1738667470410,-500.0,9.857e-05,2]
[351622231,1738667470420,-500.0,9.857e-05,2]
[351622232,1738667470430,-500.0,9.857e-05,2]
[351622233,1738667470440,-500.0,9.857e-05,2]
[351622234,1738667470450,-500.0,9.857e-05,2]
[351622235,1738667470460,-500.0,9.857e-05,2]
[351622236,1738667470470,-500.0,9.857e-05,2]
[351622237,1738667470483,-500.0,9.857e-05,2]
[351622238,1738667470492,-518.9,9.857e-05,2]
[351622239,1738667470502,-607.74,9.857e-05,2]
[351622240,1738667470512,-610.12,9.857e-05,2]
[351622241,1738667470524,-500.0,9.857e-05,2]
[351622242,1738667470535,-500.0,9.857e-05,2]
[351622243,1738667470547,-559.08,9.857e-05,2]